[Event "6th Heraklion Fischer 2019"]
[Site "Heraklion"]
[Date "2019.05.07"]
[Round "9.1"]
[White "Mitsis, Georgios"]
[Black "Georgiev, Kiril"]
[Result "1/2-1/2"]
[ECO "E12"]
[WhiteElo "2362"]
[BlackElo "2588"]
[Annotator "ChessBase"]
[PlyCount "75"]
[EventDate "2019.04.29"]
[EventType "tourn"]
[EventCountry "GRE"]
[SourceTitle "playchess.com"]
[Source "ChessBase"]
[SourceQuality "1"]
[TimeControl "40/5400+30:1800+30"]

1. d4 {[%emt 0:00:00]} Nf6 {[%emt 0:04:57]} 2. Nf3 {[%emt 0:00:00]} e6 {[%emt 0:01:00]} 3. c4 {[%emt 0:00:07]} b6 {[%emt 0:01:47]} 4. a3 {[%emt 0:00:47]} Ba6 {[%emt 0:01:21]} 5. Qc2 {[%emt 0:00:27]} Bb7 {[%emt 0:00:09]} 6. Nc3 {[%emt 0:00:15]} c5 {[%emt 0:00:10]} 7. e4 {[%emt 0:00:25]} cxd4 {[%emt 0:00:11]} 8. Nxd4 {[%emt 0:00:07]} d6 {[%emt 0:02:17]} 9. Be2 {[%emt 0:01:11]} Be7 {[%emt 0:00:26]} 10. O-O {[%emt 0:00:16]} O-O {[%emt 0:00:12]} 11. Be3 {[%emt 0:00:52]} Nbd7 {[%emt 0:00:36]} 12. f4 {[%emt 0:04:11]} Rc8 {[%emt 0:05:05]} 13. Rad1 {[%emt 0:05:46]} a6 {[%emt 0:01:18]} 14. g4 {[%emt 0:07:06]} h6 {[%emt 0:08:48]} 15. g5 {[%emt 0:31:18]} hxg5 {[%emt 0:00:17]} 16. fxg5 {[%emt 0:00:10]} Ne8 {[%emt 0:02:34]} 17. g6 {[%emt 0:00:34]} Bg5 {[%emt 0:05:12]} 18. Qd2 {[%emt 0:04:34]} Bxe3+ {[%emt 0:01:05]} 19. Qxe3 {[%emt 0:00:06]} Ne5 {[%emt 0:18:39]} 20. gxf7+ {[%emt 0:03:44]} Rxf7 {[%emt 0:01:45]} 21. Nxe6 {[%emt 0:02:17]} Qd7 {[%emt 0:02:48]} 22. Ng5 {[%emt 0:07:33]} Rxf1+ {[%emt 0:00:25]} 23. Rxf1 {[%emt 0:00:07]} Nxc4 {[%emt 0:03:12]} 24. Qd4 {[%emt 0:07:57]} Ne5 {[%emt 0:06:04]} 25. Nd5 {[%emt 0:01:56]} Nc7 {[%emt 0:05:15]} 26. Nxb6 {[%emt 0:01:44]} Qe7 {[%emt 0:00:50]} 27. h4 {[%emt 0:05:35]} Rd8 {[%emt 0:07:57]} 28. Nc4 {[%emt 0:02:44]} Ne6 {[%emt 0:05:58]} 29. Nxe6 {[%emt 0:03:15]} Qxe6 {[%emt 0:00:06]} 30. Nxe5 {[%emt 0:01:07]} Qxe5 {[%emt 0:00:02]} 31. Qxe5 {[%emt 0:00:53]} dxe5 {[%emt 0:00:03]} 32. Bc4+ {[%emt 0:00:29]} Kh7 {[%emt 0:00:07]} 33. Rf7 {[%emt 0:01:28]} Bxe4 {[%emt 0:05:44]} 34. Bxa6 {[%emt 0:00:07]} Kg6 {[%emt 0:00:21]} 35. Rf2 {[%emt 0:06:16]} Rd1+ {[%emt 0:01:52]} 36. Rf1 {[%emt 0:00:47]} Rd2 {[%emt 0:00:03]} 37. Rf2 {[%emt 0:00:17]} Rd1+ {[%emt 0:01:02]} 38. Rf1 {[%emt 0:01:35]} 1/2-1/2

[Event "6th Heraklion Fischer 2019"]
[Site "Heraklion"]
[Date "2019.05.07"]
[Round "9.2"]
[White "Kapnisis, Spyridon"]
[Black "Moksh Amit Doshi"]
[Result "1-0"]
[ECO "A28"]
[WhiteElo "2459"]
[BlackElo "2256"]
[Annotator "ChessBase"]
[PlyCount "63"]
[EventDate "2019.04.29"]
[EventType "tourn"]
[EventCountry "GRE"]
[SourceTitle "playchess.com"]
[Source "ChessBase"]
[SourceQuality "1"]
[TimeControl "40/5400+30:1800+30"]

1. c4 {[%emt 0:00:00]} e5 {[%emt 0:00:26]} 2. Nc3 {[%emt 0:00:06]} Nf6 {[%emt 0:00:07]} 3. Nf3 {[%emt 0:01:05]} Nc6 {[%emt 0:00:09]} 4. e3 {[%emt 0:00:08]} Bb4 {[%emt 0:00:06]} 5. Nd5 {[%emt 0:01:24]} e4 {[%emt 0:01:48]} 6. Ng1 {[%emt 0:00:13]} O-O {[%emt 0:03:10]} 7. a3 {[%emt 0:02:47]} Bd6 {[%emt 0:06:57]} 8. Qc2 {[%emt 0:02:35]} Re8 {[%emt 0:01:39]} 9. Ne2 {[%emt 0:01:22]} Ng4 {[%emt 0:05:59]} 10. Nef4 {[%emt 0:17:56]} Nce5 {[%emt 0:14:06]} 11. Be2 {[%emt 0:14:01]} c6 {[%emt 0:08:53]} 12. Nc3 {[%emt 0:00:24]} f5 {[%emt 0:00:08]} 13. b3 {[%emt 0:13:14]} Qh4 {[%emt 0:02:23]} 14. g3 {[%emt 0:00:33]} Qh6 {[%emt 0:00:34]} 15. d4 {[%emt 0:05:05]} exd3 {[%emt 0:03:10]} 16. Nxd3 {[%emt 0:00:12]} Nxd3+ {[%emt 0:01:13]} 17. Qxd3 {[%emt 0:06:48]} Be5 {[%emt 0:02:45]} 18. f4 {[%emt 0:08:50]} Bf6 {[%emt 0:04:31]} 19. Bxg4 {[%emt 0:04:22]} fxg4 {[%emt 0:00:06]} 20. Bb2 {[%emt 0:06:39]} b5 {[%emt 0:14:11]} 21. cxb5 {[%emt 0:03:11]} a6 {[%emt 0:00:06]} 22. bxc6 {[%emt 0:01:57]} dxc6 {[%emt 0:00:06]} 23. O-O {[%emt 0:01:12]} Be6 {[%emt 0:01:32]} 24. Na4 {[%emt 0:05:37]} Rad8 {[%emt 0:00:16]} 25. Qc2 {[%emt 0:00:21]} Bf5 {[%emt 0:05:07]} 26. Qc4+ {[%emt 0:00:21]} Be6 {[%emt 0:03:37]} 27. Qc2 {[%emt 0:00:01]} Bf5 {[%emt 0:03:33]} 28. Qc4+ {[%emt 0:00:22]} Kh8 {[%emt 0:01:53]} 29. Rad1 {[%emt 0:01:09]} Rxe3 {[%emt 0:00:37]} 30. Rxd8+ {[%emt 0:00:38]} Bxd8 {[%emt 0:00:05]} 31. Qf7 {[%emt 0:00:13]} Be6 {[%emt 0:01:53]} 32. Qe8+ {[%emt 0:00:08]} 1-0

[Event "6th Heraklion Fischer 2019"]
[Site "Heraklion"]
[Date "2019.05.07"]
[Round "9.4"]
[White "Leenhouts, Koen"]
[Black "Oglaza, Oskar"]
[Result "1/2-1/2"]
[ECO "E34"]
[WhiteElo "2446"]
[BlackElo "2338"]
[Annotator "NA"]
[PlyCount "62"]
[EventDate "2019.04.29"]
[EventType "tourn"]
[EventCountry "GRE"]
[SourceTitle "playchess.com"]
[Source "ChessBase"]
[SourceQuality "1"]
[TimeControl "40/5400+30:1800+30"]

1. d4 {[%emt 0:00:00]} Nf6 {[%emt 0:00:00]} 2. c4 {[%emt 0:00:00]} e6 {[%emt 0:00:00]} 3. Nc3 {[%emt 0:00:00]} Bb4 {[%emt 0:00:00]} 4. Qc2 {[%emt 0:00:15]} d5 {[%emt 0:00:00]} 5. cxd5 {[%emt 0:00:19]} Qxd5 {[%emt 0:00:41]} 6. e3 {[%emt 0:00:41]} O-O {[%emt 0:01:21]} 7. Bd2 {[%emt 0:01:22]} Bxc3 {[%emt 0:01:25]} 8. Bxc3 {[%emt 0:00:29]} c5 {[%emt 0:11:28]} 9. dxc5 {[%emt 0:02:51]} Qxc5 {[%emt 0:01:21]} 10. Bd3 {[%emt 0:02:59]} e5 {[%emt 0:05:53]} 11. Nf3 {[%emt 0:00:55]} Nc6 {[%emt 0:01:35]} 12. O-O {[%emt 0:00:38]} Re8 {[%emt 0:00:36]} 13. Ng5 {[%emt 0:02:16]} h6 {[%emt 0:03:10]} 14. Bh7+ $14 {[%emt 0:02:12]} Kf8 {[%emt 0:03:18]} 15. Ne4 {[%emt 0:00:24]} Nxe4 {[%emt 0:03:52]} 16. Bxe4 {[%emt 0:01:11]} Be6 {[%emt 0:02:26]} 17. b4 {[%emt 0:07:20]} Qb6 {[%emt 0:18:23]} 18. a4 {[%emt 0:15:55]} a6 {[%emt 0:09:13]} 19. Rab1 {[%emt 0:08:17]} f6 {[%emt 0:02:47]} 20. Rfc1 {[%emt 0:17:29]} Ne7 {[%emt 0:05:18]} 21. a5 {[%emt 0:01:51]} Qb5 {[%emt 0:01:33]} 22. Qd3 {[%emt 0:08:56]} Bc4 {[%emt 0:09:22]} 23. Qd6 {[%emt 0:00:21]} Rac8 {[%emt 0:00:17]} 24. Be1 {[%emt 0:05:08]} Red8 {[%emt 0:04:00]} 25. Qb6 {[%emt 0:00:06]} Qxb6 {[%emt 0:00:06]} 26. axb6 {[%emt 0:00:06]} Bd5 {[%emt 0:00:03]} 27. Rxc8 {[%emt 0:04:48]} Rxc8 {[%emt 0:03:39]} 28. Bd3 {[%emt 0:00:07]} Bc4 {[%emt 0:00:37]} 29. Be4 {[%emt 0:00:06]} Bd5 {[%emt 0:00:31]} 30. Bd3 {[%emt 0:00:06]} Bc4 {[%emt 0:05:55]} 31. Be4 {[%emt 0:00:07]} Bd5 {[%emt 0:00:05]} 1/2-1/2

[Event "6th Heraklion Fischer 2019"]
[Site "Heraklion"]
[Date "2019.05.07"]
[Round "9.5"]
[White "Rozentalis, Eduardas"]
[Black "Tate, Alan"]
[Result "1-0"]
[ECO "B06"]
[WhiteElo "2568"]
[BlackElo "2308"]
[Annotator "ChessBase"]
[PlyCount "67"]
[EventDate "2019.04.29"]
[EventType "tourn"]
[EventCountry "GRE"]
[SourceTitle "playchess.com"]
[Source "ChessBase"]
[SourceQuality "1"]
[TimeControl "40/5400+30:1800+30"]

1. e4 {[%emt 0:00:00]} g6 {[%emt 0:04:07]} 2. d4 {[%emt 0:00:00]} Bg7 {[%emt 0:00:47]} 3. Nf3 {[%emt 0:01:31]} d6 {[%emt 0:01:31]} 4. Nc3 {[%emt 0:01:13]} a6 {[%emt 0:00:16]} 5. g3 {[%emt 0:02:17]} Bg4 {[%emt 0:06:11]} 6. Bg2 {[%emt 0:00:37]} Nc6 {[%emt 0:00:17]} 7. Ne2 {[%emt 0:04:59]} e5 {[%emt 0:07:26]} 8. d5 {[%emt 0:00:41]} Nce7 {[%emt 0:03:51]} 9. O-O {[%emt 0:01:37]} Qd7 {[%emt 0:09:28]} 10. Ne1 {[%emt 0:05:39]} h5 {[%emt 0:03:41]} 11. f3 {[%emt 0:03:45]} Bh3 {[%emt 0:00:03]} 12. Bxh3 {[%emt 0:00:23]} Qxh3 {[%emt 0:00:03]} 13. Nd3 {[%emt 0:00:11]} Qd7 {[%emt 0:10:27]} 14. c4 {[%emt 0:05:35]} c5 {[%emt 0:01:42]} 15. b4 {[%emt 0:07:28]} b6 {[%emt 0:01:57]} 16. bxc5 {[%emt 0:03:20]} bxc5 {[%emt 0:00:57]} 17. Nc3 {[%emt 0:02:34]} Rb8 {[%emt 0:00:39]} 18. Qa4 {[%emt 0:04:15]} Qxa4 {[%emt 0:00:35]} 19. Nxa4 {[%emt 0:00:04]} f5 {[%emt 0:03:15]} 20. Bg5 {[%emt 0:00:45]} Nf6 {[%emt 0:09:25]} 21. Rab1 {[%emt 0:00:55]} O-O {[%emt 0:01:58]} 22. Rb6 {[%emt 0:20:24]} Rxb6 {[%emt 0:00:32]} 23. Nxb6 {[%emt 0:00:13]} Rf7 {[%emt 0:08:00]} 24. Bxf6 {[%emt 0:03:42]} Bxf6 {[%emt 0:00:06]} 25. Rb1 {[%emt 0:00:37]} fxe4 {[%emt 0:04:03]} 26. fxe4 {[%emt 0:00:19]} Bg5 {[%emt 0:01:50]} 27. Kg2 {[%emt 0:01:16]} Bd2 {[%emt 0:00:51]} 28. Na4 {[%emt 0:03:45]} h4 {[%emt 0:06:39]} 29. Rb6 {[%emt 0:03:43]} h3+ {[%emt 0:00:19]} 30. Kxh3 {[%emt 0:00:14]} Rf3 {[%emt 0:00:11]} 31. Nab2 {[%emt 0:00:45]} Nf5 {[%emt 0:05:13]} 32. exf5 {[%emt 0:01:44]} e4 {[%emt 0:01:31]} 33. fxg6 {[%emt 0:02:40]} Ba5 {[%emt 0:02:18]} 34. Rb8+ {[%emt 0:01:01]} 1-0